Cogmind - Beta 15 @@@ ROGUE MODE // 2025.10.08 @ 20:00:51 Player: Bikerider58 Result: Destroyed by X-62 Marksman with Gauss Rifle Performance ------------- Evolutions (4) 2000 Regions Visited (13) 2600 Robots Destroyed (97) 485 Value Destroyed (3341) 3341 Prototype IDs (44) 880 Alien Tech Used (0) 0 Bonus (600) 600 TOTAL SCORE: 9906 Bonus ------- Aligned with FarCom 300 Met Data Miner 300 Cogmind --------- Core Integrity 0/850 Matter 208/300 Energy 155/175 System Corruption 2% Temperature Warm (112) Movement Walking (260) Ox2 Location -6/Factory Parts ------- > --- POWER (2) -------- Light Ion Engine Light Angular Momentum Engine > --- PROPULSION (2) --- Carbon-fiber Leg Carbon-fiber Leg > --- UTILITY (8) ------ Structural Scanner Improved Medium Armor Plating Improved Medium Armor Plating > --- WEAPON (3) ------- AWS/Autocannon > --- INVENTORY (5) ---- Authchip [Propulsion] Peak State ------------ > --- POWER ------------ Improved Deuterium Engine Makeshift Power Source > --- PROPULSION ------- Armored Huge Wheel > --- UTILITY ---------- Huge Storage Unit Machine Analyzer Advanced Visual Processing Unit Improved Terrain Scanner Seismic Detector Advanced Targeting Computer Hardlight Generator Sensor Drone Bay > --- WEAPON ----------- Plasma Rifle KE Penetrator Power Sword > --- INVENTORY -------- Improved VSS Leg Wheel Compact Wheel Compact Wheel Armored Huge Wheel Improved Cooling System High-capacity Storage Unit Improved Signal Interpreter Cloaking Device Reactive Plating Reactive Plating Authchip [Propulsion] Arc Thrower Arc Thrower EM Pulse Cannon Improved EM Pulse Cannon Gauss Rifle Gauss Rifle AWS/Autocannon Heavy Missile Launcher Heavy Missile Launcher Plasma Cutter [Rating: 67] Favorites ----------- Power Improved Deuterium Engine Engine Improved Deuterium Engine Power Core Light Nuclear Core Propulsion Armored Huge Wheel Treads Light Treads Leg Aluminum Leg Wheel Armored Huge Wheel Utility Huge Storage Unit Device Hardlight Generator Storage Huge Storage Unit Processor Machine Analyzer Hackware Hacking Suite Protection Core Shielding Weapon Assault Rifle Energy Gun Plasma Rifle Energy Cannon Heavy Ion Cannon Ballistic Gun Assault Rifle Ballistic Cannon AWS/Autocannon Launcher Heavy Missile Launcher Special Weapon Mining Laser Slashing Weapon Power Sword Build | -11 -10 -10 -10 -9 -8 -7 -7 -7 -7 -6 -6 -6 -6 ------- Run | Yrd Mat Min Exi Min Mat Fac Low Low Dat Pro Fac Was Fac Slots Evolved 8 | . . . . . 4 2 . . . . 2 . . Power 1 | . . . . . . . . . . . 1 . . Propulsion . | . . . . . . . . . . . . . . Utility 6 | . . . . . 3 2 . . . . 1 . . Weapon 1 | . . . . . 1 . . . . . . . . Parts Attached 102 | 8 13 . 1 2 18 18 3 5 . 4 4 1 25 Power 17 | 1 2 . . . 3 2 1 . . 1 1 . 6 Engine 14 | 1 2 . . . . 2 1 . . 1 1 . 6 Core 3 | . . . . . 3 . . . . . . . . Reactor . | . . . . . . . . . . . . . . Propulsion 15 | 3 4 . . . 1 3 . . . . 1 . 3 Treads 1 | 1 . . . . . . . . . . . . . Leg 6 | 2 2 . . . . . . . . . . . 2 Wheel 8 | . 2 . . . 1 3 . . . . 1 . 1 Hover . | . . . . . . . . . . . . . . Flight . | . . . . . . . . . . . . . . Utility 40 | 2 3 . 1 2 8 9 . 1 . 1 2 . 11 Device 15 | 1 . . . 1 2 5 . 1 . . 1 . 4 Storage 6 | 1 2 . 1 . . . . . . . . . 2 Processor 7 | . . . . . 3 1 . . . . 1 . 2 Hackware 2 | . . . . . 1 1 . . . . . . . Protection 10 | . 1 . . 1 2 2 . . . 1 . . 3 Artifact . | . . . . . . . . . . . . . . Weapon 30 | 2 4 . . . 6 4 2 4 . 2 . 1 5 Energy Gun 8 | 1 1 . . . 2 1 . 1 . . . . 2 Energy Cannon 4 | . . . . . 1 1 . 1 . 1 . . . Ballistic Gun 13 | 1 2 . . . 3 2 1 1 . . . 1 2 Ballistic Cannon 1 | . . . . . . . . . . . . . 1 Launcher 2 | . . . . . . . 1 . . 1 . . . Special Weapon 1 | . 1 . . . . . . . . . . . . Impact Weapon . | . . . . . . . . . . . . . . Slashing Weapon 1 | . . . . . . . . 1 . . . . . Piercing Weapon . | . . . . . . . . . . . . . . Special Melee Weapon . | . . . . . . . . . . . . . . Unidentified Prototypes 5 | . . . . 1 2 1 . . . . . . 1 Parts Lost 24 | . 2 . . . . 6 . . . 2 . 6 8 Power 7 | . 1 . . . . 1 . . . 1 . 1 3 Propulsion 4 | . . . . . . 2 . . . . . . 2 Utility 5 | . . . . . . 1 . . . 1 . 2 1 Weapon 8 | . 1 . . . . 2 . . . . . 3 2 Highest Loss Streak 6 | . 1 . . . . 2 . . . 2 . 6 4 To Critical Strikes . | . . . . . . . . . . . . . . Average Backups 19 | 1 13 20 20 21 22 22 23 22 23 22 21 18 5 Power 1 | . . 1 3 4 3 1 1 1 2 1 . . . Propulsion 3 | . 5 6 4 5 4 2 3 3 3 3 4 4 . Utility 7 | . 4 7 6 7 8 10 8 8 8 7 6 5 2 Weapon 6 | 1 2 6 5 5 6 8 8 9 9 9 9 7 2 Tool/Special . | . . . . . . . . . . . . . . Unused Backups 41 | . 3 . 2 . 10 6 6 2 . . . 9 3 Power 6 | . . . . . 2 2 . 2 . . . . . Propulsion 10 | . 2 . 1 . 2 . . . . . . 4 1 Utility 9 | . . . . . 3 . 3 . . . . 1 2 Weapon 14 | . 1 . 1 . 2 4 3 . . . . 3 . Tool/Special 2 | . . . . . 1 . . . . . . 1 . Average Slot Usage (%) 93 | . 99 100 100 100 99 94 92 92 75 92 91 66 80 Engine 8 | . 13 14 14 14 3 6 7 7 7 7 12 6 11 Core 1 | . . . . . 5 . . . . . . . . Leg 1 | . 10 . . . . . . . . . . . . Wheel 12 | . 17 28 28 28 18 9 7 7 7 7 6 6 5 Device 11 | . 7 . . 3 5 7 20 22 15 22 22 11 12 Storage 8 | . 14 14 14 14 9 7 7 7 7 7 6 4 3 Processor 16 | . . . . . 14 23 23 23 23 23 23 23 23 Hackware 1 | . . . . . 1 6 . . . . . . . Protection 6 | . 6 14 14 10 14 7 1 . 7 . . . 4 Energy Gun 5 | . 14 . . . . 2 7 7 1 7 6 2 11 Energy Cannon 3 | . . . . . 7 7 4 3 2 6 1 . . Ballistic Gun 12 | . 12 28 28 28 19 11 9 8 2 7 6 4 4 Peak Build Rating 67 | 7 9 9 13 20 35 55 54 58 57 56 67 67 60 Average Rating 38 | 5 7 9 11 15 27 48 51 53 45 53 64 47 50 On Entrance 31 | . 7 9 9 13 14 35 53 53 57 57 53 67 20 Naked Turns 24 | . . . . . . . . . . . . . 24 Heaviest Build 130 | 14 90 90 90 103 103 116 115 116 116 122 130 113 73 Greatest Support 30 | 20 26 26 26 26 26 28 28 28 28 28 28 28 30 Greatest Overweight (x) 9 | 1 3 3 3 3 3 9 4 4 4 4 4 4 7 Average Overweight (x) 2 | . 1 3 2 3 3 3 3 3 3 3 4 2 . Largest Inventory Capacity 25 | 8 25 25 25 25 25 25 25 25 25 25 25 25 10 Average Capacity 21 | 7 19 25 22 25 25 25 25 25 25 25 25 18 8 Most Carried 25 | 4 25 20 23 24 25 25 25 25 25 25 25 25 10 Average Carried 20 | 1 13 20 21 23 24 24 24 24 25 24 24 18 7 Final Capacity 25 | 8 25 25 25 25 25 25 25 25 25 25 25 5 5 Final Carried 25 | 4 20 20 23 24 25 25 25 25 25 23 25 5 1 Class Distribution -------------------- 33% | Scavenger-Skirmisher 32% | Skirmisher 20% | Mutant 7% | Scavenger-Mutant 3% | Tank Dominant Class ---------------- Mutant | -10/Materials Mutant | -10/Mines Mutant | -10/Exiles Mutant | -9/Mines Skirmisher | -8/Materials Skirmisher | -7/Factory Skirmisher | -7/Lower Caves Scavenger-Skirmisher | -7/Lower Caves Mutant | -7/Data Miner Scavenger-Skirmisher | -6/Proximity Caves Assassin | -6/Factory Assassin | -6/Waste Scavenger-Skirmisher | -6/Factory Resources | -11 -10 -10 -10 -9 -8 -7 -7 -7 -7 -6 -6 -6 -6 ----------- Run | Yrd Mat Min Exi Min Mat Fac Low Low Dat Pro Fac Was Fac Matter Collected 2834 | 292 251 10 . 19 603 548 346 259 . 43 . . 463 Remotely . | . . . . . . . . . . . . . . Salvage Created 4075 | 75 551 . . 19 953 776 645 168 . 181 . . 707 Parts 207 | 5 36 . . . 67 38 25 4 . 4 . . 28 Haulers Intercepted 6 | . 2 . . . 4 . . . . . . . . Recyclers Shooed 1 | . . . . . . . . . . . . . 1 Parts Field Recycled . | . . . . . . . . . . . . . . Retrieved Matter . | . . . . . . . . . . . . . . Parts Self-Destructed 27 | . . . . . . . 20 4 . 3 . . . Prevented 4 | . . . . . . . 4 . . . . . . Kills | -11 -10 -10 -10 -9 -8 -7 -7 -7 -7 -6 -6 -6 -6 ------- Run | Yrd Mat Min Exi Min Mat Fac Low Low Dat Pro Fac Was Fac Combat Hostiles Destroyed 71 | . 11 . . . 14 14 13 2 . 3 . . 14 Guns 34 | . 9 . . . 5 6 9 1 . . . . 4 Cannons 24 | . . . . . 9 7 2 1 . . . . 5 AOE 11 | . 2 . . . . . 2 . . 3 . . 4 Classes Destroyed 14 | 2 5 . . . 2 2 2 . . . . . 1 Worker 8 | . 3 . . . 4 . . . . . . . 1 Builder 2 | . 1 . . . 1 . . . . . . . . Tunneler 4 | 1 . . . 1 1 1 . . . . . . . Hauler 6 | . 2 . . . 4 . . . . . . . . Recycler 4 | 1 1 . . . . 1 . . . . . . 1 Mechanic 1 | . . . . . . . . . . . . . 1 Operator 1 | . . . . . 1 . . . . . . . . Swarmer 12 | . 6 . . . 3 . 3 . . . . . . Grunt 31 | . 5 . . . 6 8 5 . . 3 . . 4 Brawler 2 | . . . . . . . 2 . . . . . . Duelist 2 | . . . . . . . 2 . . . . . . Sentry 12 | . . . . . 5 2 1 . . . . . 4 Hunter 3 | . . . . . . 1 . 1 . . . . 1 Programmer 9 | . . . . . . 3 . 1 . . . . 5 Decomposer 2 | . . . . . . . . . . 2 . . . Best Kill Streak 5 | 2 4 . . 1 5 3 5 1 . 3 . . 5 Combat Bots Only 5 | . 3 . . . 3 3 5 1 . 3 . . 5 Max Kills in Single Turn 5 | 1 3 . . 1 2 1 1 1 . 2 . . 5 Gunslinging . | . . . . . . . . . . . . . . Exploded 4 | . 2 . . . . . 1 . . 2 . . 4 Melee . | . . . . . . . . . . . . . . Uniques/NPCs Destroyed . | . . . . . . . . . . . . . . Combat | -11 -10 -10 -10 -9 -8 -7 -7 -7 -7 -6 -6 -6 -6 -------- Run | Yrd Mat Min Exi Min Mat Fac Low Low Dat Pro Fac Was Fac Hostile Shots Fired 586 | . 62 . . . 42 154 36 8 . 33 . 8 243 Missed 173 | . 15 . . . 13 47 7 1 . 11 . . 79 Hits 413 | . 47 . . . 29 107 29 7 . 22 . 8 164 Melee 11 | . . . . . . . 3 . . . . 8 . Projectile 402 | . 47 . . . 29 107 26 7 . 22 . . 164 Critical Strikes 21 | . 1 . . . 3 3 1 . . . . 5 8 Actively Blocked 2 | . 1 . . . 1 . . . . . . . . Part Disruptions 1 | . . . . . . 1 . . . . . . . Damage Taken 5481 | . 631 . . . 392 1218 472 75 . 253 . 306 2134 Core 1389 | . 107 . . . 67 155 134 . . 59 . 90 777 Absorbed by Shields 112 | . . . . . . . 60 4 . 48 . . . Redirected to Shielding 119 | . 2 . . . 8 . . . . . . . 109 Ignored by Resistances 5 | . . . . . . . . . . 5 . . . Core Remaining (%) 73 | 100 . . . 57 87 . . . . 50 . . . Volleys Fired 255 | 4 47 . . 4 57 87 21 4 . 8 2 . 21 Largest 3 | 2 2 . . 2 3 3 3 3 . 2 3 . 3 Hottest 177 | 60 100 . . 40 108 148 140 177 . 108 171 . 173 Shots Fired 550 | 8 89 . . 8 137 164 50 9 . 13 4 . 68 Gun 381 | 8 86 . . 8 90 77 36 8 . 10 3 . 55 Cannon 161 | . . . . . 47 87 11 1 . 1 1 . 13 Launcher 5 | . . . . . . . 3 . . 2 . . . Special 3 | . 3 . . . . . . . . . . . . Kinetic 267 | 4 38 . . 8 90 66 21 3 . 4 2 . 31 Thermal 222 | 4 24 . . . 47 87 11 5 . 6 1 . 37 Explosive 5 | . . . . . . . 3 . . 2 . . . Electromagnetic 56 | . 27 . . . . 11 15 1 . 1 1 . . Robot Hit Streak 24 | 6 17 . . 3 13 24 19 10 . 13 . . 20 Robot Miss Streak 4 | . 3 . . 2 3 4 1 . . 1 4 . 3 Penetration Max . | . . . . . . . . . . . . . . Secondary Targets . | . . . . . . . . . . . . . . Autonomous 13 | . . . . . . . . . . . . . 13 Shots Hit Robots 341 | 6 59 . . 4 70 86 37 7 . 9 . . 63 Core Hits 206 | 3 27 . . 1 37 48 26 3 . 8 . . 53 Critical Kills 3 | . 1 . . . 1 1 . . . . . . . Critical Parts Destroyed 2 | . . . . . 2 . . . . . . . . Critical Strikes 7 | . 1 . . . 3 3 . . . . . . . Meltdown 1 | . . . . . . 1 . . . . . . . Destroy 4 | . 1 . . . 3 . . . . . . . . Corrupt 2 | . . . . . . 2 . . . . . . . Melee Attacks 7 | . . . . . . . . 4 . . 3 . . Impact . | . . . . . . . . . . . . . . Slashing 7 | . . . . . . . . 4 . . 3 . . Piercing . | . . . . . . . . . . . . . . Sneak Attacks . | . . . . . . . . . . . . . . Combat Hostiles . | . . . . . . . . . . . . . . Follow-up Attacks . | . . . . . . . . . . . . . . Damage Inflicted 9610 | 76 871 . . 47 1291 1910 1081 177 . 430 . . 3727 Guns 4539 | 76 710 . . 47 696 968 476 146 . 153 . . 1267 Cannons 2880 | . . . . . 595 900 215 31 . . . . 1139 Explosions 2176 | . 146 . . . . 42 390 . . 277 . . 1321 Melee . | . . . . . . . . . . . . . . Ramming 15 | . 15 . . . . . . . . . . . . Kinetic 4009 | 54 352 . . 47 696 838 262 52 . 88 . . 1620 Thermal 4312 | 22 272 . . . 595 942 215 94 . 65 . . 2107 Explosive 667 | . . . . . . . 390 . . 277 . . . Electromagnetic 607 | . 232 . . . . 130 214 31 . . . . . Impact . | . . . . . . . . . . . . . . Slashing . | . . . . . . . . . . . . . . Piercing . | . . . . . . . . . . . . . . Highest Corruption 6 | . . . . . 5 6 6 6 6 6 . . 2 Average Corruption 4 | . . . . . 4 3 6 6 6 6 . . 1 Corruption Purged . | . . . . . . . . . . . . . . Corruption Blocked . | . . . . . . . . . . . . . . Effects 119 | . . . . . 28 23 25 25 4 13 . . 1 Message Errors 29 | . . . . . 4 6 7 7 1 4 . . . Matter Fused 27 | . . . . . 7 6 4 7 1 2 . . . Heat Flow Errors 18 | . . . . . 5 2 1 6 1 2 . . 1 Energy Discharges 11 | . . . . . 1 3 5 1 . 1 . . . Parts Rejected 1 | . . . . . . . 1 . . . . . . Parts Fused 2 | . . . . . 1 . . . . 1 . . . Data Loss (minor) 12 | . . . . . 3 4 2 . 1 2 . . . Data Loss (major) 7 | . . . . . 2 1 3 1 . . . . . Misfires 5 | . . . . . 1 1 1 1 . 1 . . . Alerts 3 | . . . . . 1 . . 2 . . . . . Weapon Failures 4 | . . . . . 3 . 1 . . . . . . Overload Shots . | . . . . . . . . . . . . . . Overflow Damage 507 | . 3 . . . . 24 21 . . . . . 459 Projectiles 323 | . . . . . . 12 . . . . . . 311 Explosions 184 | . 3 . . . . 12 21 . . . . . 148 Melee . | . . . . . . . . . . . . . . Knockbacks 3 | . . . . . . . . . . . . . 3 Impact . | . . . . . . . . . . . . . . Kinetic 3 | . . . . . . . . . . . . . 3 Secondary . | . . . . . . . . . . . . . . Self-Inflicted Damage 275 | . 80 . . . . 51 . . . . . . 144 Shots 5 | . 2 . . . . 1 . . . . . . 2 Rammed 2 | . 2 . . . . . . . . . . . . Targets Rammed 2 | . 2 . . . . . . . . . . . . Kicked . | . . . . . . . . . . . . . . Crushed . | . . . . . . . . . . . . . . Highest Temperature 326 | . 190 . . . 326 238 209 250 157 254 81 . 209 Average Temperature 72 | . 58 . . . 77 60 64 95 79 74 39 . 86 Received Heat Transfer 1078 | . 243 . . . 162 285 84 . . 37 . . 267 Siege Activations . | . . . . . . . . . . . . . . Martial Activations . | . . . . . . . . . . . . . . Shielding Activations . | . . . . . . . . . . . . . . Robots Disrupted . | . . . . . . . . . . . . . . Combat Hostiles . | . . . . . . . . . . . . . . Robots Corrupted . | . . . . . . . . . . . . . . Combat Hostiles . | . . . . . . . . . . . . . . Parts Fried 2 | . 2 . . . . . . . . . . . . Impact Corruptions . | . . . . . . . . . . . . . . Robots Melted 2 | . . . . . . 1 . . . . . . 1 Combat Hostiles 2 | . . . . . . 1 . . . . . . 1 Parts Melted 9 | . 1 . . . . 2 . . . . . . 6 Heat Transferred 5545 | 50 500 . . . 962 1271 296 200 . 150 . . 2116 Parts Sabotaged . | . . . . . . . . . . . . . . Parts Stolen . | . . . . . . . . . . . . . . Parts Stripped . | . . . . . . . . . . . . . . Power Chain Reactions 3 | . 2 . . . . 1 . . . . . . . Alert | -11 -10 -10 -10 -9 -8 -7 -7 -7 -7 -6 -6 -6 -6 ------- Run | Yrd Mat Min Exi Min Mat Fac Low Low Dat Pro Fac Was Fac Maximum Alert Level 1 | . . . . . 1 . . . . . . . 1 Low Security (%) 98 | 100 100 100 . 100 97 100 . . . . 100 100 94 Level 1 1 | . . . . . 2 . . . . . . . 5 Level 2 . | . . . . . . . . . . . . . . Level 3 . | . . . . . . . . . . . . . . Level 4 . | . . . . . . . . . . . . . . Level 5 . | . . . . . . . . . . . . . . High Security . | . . . . . . . . . . . . . . Max Security . | . . . . . . . . . . . . . . Peak Influence 300 | 10 151 . . 5 211 117 . . . . 24 1 300 Initial 73 | . . . . . . 73 . . . . . 1 . Average 47 | 1 70 . . . 63 46 . . . . 3 . 27 Influence Increases 2492 | 10 435 . . 5 477 478 355 65 . 85 26 . 556 Destroy 0b10 Robot/C 1420 | . 220 . . . 280 280 260 40 . 60 . . 280 Destroy 0b10 Robot/NC 135 | 10 35 . . 5 55 10 . 5 . . . . 15 Destroy Leader 342 | . 44 . . . 88 90 20 20 . 10 . . 70 Successful Hack 112 | . 20 . . . 14 25 . . . . 24 . 29 Select Force Hacks 60 | . 30 . . . . 30 . . . . . . . Disable Machine 75 | . . . . . 15 . . . . . . . 60 Destroy Structure 93 | . 11 . . . 10 28 . . . . 2 . 42 Lose Combat Pursuer 255 | . 75 . . . 15 15 75 . . 15 . . 60 Influence Decreases 2208 | 10 435 . . 5 315 560 328 172 . 85 22 4 272 Entered New Map 143 | . . . . . . 89 30 21 . . . 3 . Time Decay 1885 | 10 405 . . 5 315 421 298 151 . 65 22 1 192 Lost Part 170 | . 20 . . . . 50 . . . 20 . . 80 Lost Ally 10 | . 10 . . . . . . . . . . . . Squads Dispatched 17 | . 1 . . . 1 8 . . . . 2 . 5 Investigation 6 | . 1 . . . . 4 . . . . 1 . . Extermination 5 | . . . . . . 3 . . . . . . 2 Reinforcement 5 | . . . . . 1 1 . . . . 1 . 2 Assault . | . . . . . . . . . . . . . . Garrison 1 | . . . . . . . . . . . . . 1 Intercept . | . . . . . . . . . . . . . . Searches Triggered . | . . . . . . . . . . . . . . Construction Impeded . | . . . . . . . . . . . . . . Haulers Reinforced . | . . . . . . . . . . . . . . Active Scanning Responses . | . . . . . . . . . . . . . . Cargo Convoy Interrupts 1 | . . . . . . . . . . . . . 1 Stealth | -11 -10 -10 -10 -9 -8 -7 -7 -7 -7 -6 -6 -6 -6 --------- Run | Yrd Mat Min Exi Min Mat Fac Low Low Dat Pro Fac Was Fac Distress Signals 9 | . 3 . . . 4 1 . . . . . . 1 Communications Jammed 34 | . . . . . . 11 . . . . . . 23 Distress Signals 33 | . . . . . . 10 . . . . . . 23 Times Spotted 132 | . 24 . . . 27 20 14 3 . 4 2 6 32 Peak Tracking Total 12 | . 6 . . . 6 5 7 1 . 4 1 6 12 Tactical Retreats 11 | . 3 . . . 1 1 2 . . 1 . . 3 Traps | -11 -10 -10 -10 -9 -8 -7 -7 -7 -7 -6 -6 -6 -6 ------- Run | Yrd Mat Min Exi Min Mat Fac Low Low Dat Pro Fac Was Fac Traps Triggered 9 | . . . . . 3 1 . . . . 2 . 3 Indirectly . | . . . . . . . . . . . . . . Trap Hack Attempts . | . . . . . . . . . . . . . . Triggered . | . . . . . . . . . . . . . . Disarmed . | . . . . . . . . . . . . . . Reprogrammed . | . . . . . . . . . . . . . . Reused . | . . . . . . . . . . . . . . Traps Extracted . | . . . . . . . . . . . . . . Installed . | . . . . . . . . . . . . . . Triggered . | . . . . . . . . . . . . . . Machines | -11 -10 -10 -10 -9 -8 -7 -7 -7 -7 -6 -6 -6 -6 ---------- Run | Yrd Mat Min Exi Min Mat Fac Low Low Dat Pro Fac Was Fac Machines Disabled 6 | . . . . . 1 . 1 . . . . . 4 Max in Single Turn 4 | . . . . . 1 . 1 . . . . . 4 Garrison Access 1 | . . . . . 1 . . . . . . . . Machines Repaired . | . . . . . . . . . . . . . . Machines Dismantled . | . . . . . . . . . . . . . . Machines Sabotaged . | . . . . . . . . . . . . . . Overloaded Fab Kills . | . . . . . . . . . . . . . . Hacking | -11 -10 -10 -10 -9 -8 -7 -7 -7 -7 -6 -6 -6 -6 --------- Run | Yrd Mat Min Exi Min Mat Fac Low Low Dat Pro Fac Was Fac Machines Accessed 48 | . 8 . 3 1 11 13 1 1 4 . 2 . 4 Terminals 23 | . 7 . . . 7 6 . . . . . . 3 Fabricators 3 | . . . . . . 3 . . . . . . . Repair Stations 2 | . . . . . . . . . . . 1 . 1 Recycling Units 5 | . 1 . . . 2 1 . . . . 1 . . Scanalyzers 3 | . . . . . 1 2 . . . . . . . Garrison Access 2 | . . . . . 1 1 . . . . . . . Total Hacks 139 | . 25 . 6 1 25 36 1 1 29 . 3 . 12 Successful 85 | . 14 . 6 1 6 20 1 1 29 . 2 . 5 Failed 54 | . 11 . . . 19 16 . . . . 1 . 7 Catastrophic 10 | . 1 . . . 6 2 . . . . 1 . . Database Lockouts . | . . . . . . . . . . . . . . Manual 50 | . 15 . 1 . 11 16 . . . . . . 7 Terminals 62 | . 24 . . . 14 13 . . . . . . 11 Fabricators 11 | . . . . . . 11 . . . . . . . Repair Stations 3 | . . . . . . . . . . . 2 . 1 Recycling Units 9 | . 1 . . . 6 1 . . . . 1 . . Scanalyzers 12 | . . . . . 3 9 . . . . . . . Garrison Access 4 | . . . . . 2 2 . . . . . . . Terminal Hacks 52 | . 6 . 6 1 2 4 1 1 29 . . . 2 Record 16 | . . . 5 . . . . . 11 . . . . Part Schematic 10 | . . . . . . 1 . . 9 . . . . Robot Schematic 6 | . . . . . . . . . 6 . . . . Prototype ID Bank 5 | . 1 . . . 1 . . . 3 . . . . Open Door 3 | . . . . 1 . . 1 1 . . . . . Branch Access Points 2 | . . . . . . 1 . . . . . . 1 Machine Index 1 | . . . . . . 1 . . . . . . . Locate Traps 1 | . . . . . . 1 . . . . . . . Maintenance Status 1 | . 1 . . . . . . . . . . . . Recall Investigation 1 | . 1 . . . . . . . . . . . . Hauler Manifests 3 | . 1 . . . 1 . . . . . . . 1 Zone Layout 2 | . 2 . . . . . . . . . . . . Proto ID Catalog 1 | . . . 1 . . . . . . . . . . Fabricator Hacks 4 | . . . . . . 4 . . . . . . . Load Schematic 3 | . . . . . . 3 . . . . . . . Build 1 | . . . . . . 1 . . . . . . . Repair Station Hacks 2 | . . . . . . . . . . . 1 . 1 Scan Component 1 | . . . . . . . . . . . 1 . . Refit 1 | . . . . . . . . . . . . . 1 Recycling Unit Hacks 2 | . . . . . . 1 . . . . 1 . . Retrieve Components 2 | . . . . . . 1 . . . . 1 . . Scanalyzer 6 | . . . . . 1 5 . . . . . . . Insert Component 4 | . . . . . 1 3 . . . . . . . Analyze 2 | . . . . . . 2 . . . . . . . Garrison Access Hacks 1 | . . . . . 1 . . . . . . . . Seal Access 1 | . . . . . 1 . . . . . . . . Unauthorized Hacks 18 | . 8 . . . 2 6 . . . . . . 2 Terminals 13 | . 7 . . . 2 2 . . . . . . 2 Assimilate 1 | . 1 . . . . . . . . . . . . Botnet 6 | . 1 . . . 2 2 . . . . . . 1 Operators 1 | . . . . . . . . . . . . . 1 Skim 5 | . 5 . . . . . . . . . . . . Fabricators 3 | . . . . . . 3 . . . . . . . Prioritize 1 | . . . . . . 1 . . . . . . . Recompile 2 | . . . . . . 2 . . . . . . . Repair Stations . | . . . . . . . . . . . . . . Recycling Units 1 | . 1 . . . . . . . . . . . . Tunnel 1 | . 1 . . . . . . . . . . . . Scanalyzers 1 | . . . . . . 1 . . . . . . . Extract 1 | . . . . . . 1 . . . . . . . Garrison Access . | . . . . . . . . . . . . . . Data Cores Recovered . | . . . . . . . . . . . . . . Used . | . . . . . . . . . . . . . . Hacking Detections 32 | . 7 . . . 10 11 . . . . 1 . 3 Full Trace Events 2 | . . . . . 1 1 . . . . . . . Feedback Events . | . . . . . . . . . . . . . . Feedback Blocked . | . . . . . . . . . . . . . . Robot Schematics Acquired 6 | . . . . . . . . . 6 . . . . Robots Built . | . . . . . . . . . . . . . . Authchips . | . . . . . . . . . . . . . . Time . | . . . . . . . . . . . . . . Total Robot Build Rating . | . . . . . . . . . . . . . . Part Schematics Acquired 31 | . . . . . . 22 . . 9 . . . . Parts Built 2 | . . . . . . 2 . . . . . . . Authchips 1 | . . . . . . 1 . . . . . . . Time 62 | . . . . . . 62 . . . . . . . Total Part Build Rating 4 | . . . . . . 4 . . . . . . . Parts Repaired . | . . . . . . . . . . . . . . Time . | . . . . . . . . . . . . . . Parts Recycled . | . . . . . . . . . . . . . . Recycled Matter . | . . . . . . . . . . . . . . Retrieved Matter . | . . . . . . . . . . . . . . Retrieved Components 13 | . . . . . . 10 . . . . 3 . . Parts Scanalyzed 4 | . . . . . 1 3 . . . . . . . Part Schematics Acquired 2 | . . . . . . 2 . . . . . . . Parts Damaged . | . . . . . . . . . . . . . . Bothacking | -11 -10 -10 -10 -9 -8 -7 -7 -7 -7 -6 -6 -6 -6 ------------ Run | Yrd Mat Min Exi Min Mat Fac Low Low Dat Pro Fac Was Fac Used RIF Installer . | . . . . . . . . . . . . . . Robots Hacked . | . . . . . . . . . . . . . . Non-combat . | . . . . . . . . . . . . . . Combat . | . . . . . . . . . . . . . . Robot Hacks Applied . | . . . . . . . . . . . . . . Relay Couplers Released . | . . . . . . . . . . . . . . Fabnet Peak Effective % . | . . . . . . . . . . . . . . Robots Rewired 2 | . . . . . . . 2 . . . . . . Allies Hacked . | . . . . . . . . . . . . . . Hacks Repelled . | . . . . . . . . . . . . . . Allies | -11 -10 -10 -10 -9 -8 -7 -7 -7 -7 -6 -6 -6 -6 -------- Run | Yrd Mat Min Exi Min Mat Fac Low Low Dat Pro Fac Was Fac Total Allies 3 | . 1 . . . . . 2 . . . . . . Largest Group 2 | . 1 . . . . . 2 2 . . . . . Highest-Rated Group 50 | . 10 . . . . . 50 50 . . . . . Highest-Rated Ally 30 | . 10 . . . . . 30 30 . . . . . Total Orders 10 | . . . . 2 . 1 . . . . 6 . 1 EXPLORE 7 | . . . . 1 . 1 . . . . 4 . 1 RETURN 3 | . . . . 1 . . . . . . 2 . . Ally Attacks 3 | . . . . . . . . 3 . . . . . Total Damage 31 | . . . . . . . . 31 . . . . . Kills . | . . . . . . . . . . . . . . Allies Corrupted . | . . . . . . . . . . . . . . Allies Melted . | . . . . . . . . . . . . . . Intel | -11 -10 -10 -10 -9 -8 -7 -7 -7 -7 -6 -6 -6 -6 ------- Run | Yrd Mat Min Exi Min Mat Fac Low Low Dat Pro Fac Was Fac Active Infowar (turns) 7305 | 36 562 . . . 1351 1825 822 872 122 436 208 125 946 Optics 5319 | . . . . . . 1825 822 872 122 436 208 125 909 Terrain 3541 | . . . . . 536 864 640 790 . 434 208 69 . Structural 37 | . . . . . . . . . . . . . 37 Seismic 2603 | 36 562 . . . 53 . 680 775 . 401 96 . . T.N.C. 224 | . . . . . 224 . . . . . . . . Machine Analysis 6616 | . . . . . 1297 1825 822 872 122 436 208 125 909 Cloaking 213 | . . . . . . . . . . . 142 71 . Jamming 854 | . . . . . . 115 . . . . . . 739 Robot Analysis Total . | . . . . . . . . . . . . . . Derelict Logs Recovered 3 | . . . . . . . 2 1 . . . . . Drone Launches 7 | . . . . 1 . 1 . . . . 3 . 2 Drone Recoveries 6 | . . . . 1 . 1 . . . . 3 . 1 Exploration | -11 -10 -10 -10 -9 -8 -7 -7 -7 -7 -6 -6 -6 -6 ------------- Run | Yrd Mat Min Exi Min Mat Fac Low Low Dat Pro Fac Was Fac Turns Passed 8658 | 82 1119 49 498 165 1353 1825 822 872 122 436 208 125 982 Spaces Moved 5093 | 40 666 36 400 101 787 919 474 522 79 222 111 93 643 Core 47 | 4 . . . . . . . . . . . . 43 Treads 11 | 11 . . . . . . . . . . . . . Legs 263 | 25 226 . . . . . . . . . . . 12 Wheels 4772 | . 440 36 400 101 787 919 474 522 79 222 111 93 588 Hover . | . . . . . . . . . . . . . . Flight . | . . . . . . . . . . . . . . Fastest Speed 50 | 50 120 135 105 135 135 135 145 145 145 145 160 100 50 Average Speed 136 | 129 129 135 120 135 135 149 146 148 147 155 160 131 108 Slowest Speed 215 | 190 135 135 135 135 135 215 160 160 160 160 160 160 185 Overloaded Moves . | . . . . . . . . . . . . . . Propulsion Burnouts . | . . . . . . . . . . . . . . Robots Hopped . | . . . . . . . . . . . . . . Potential Cave-ins . | . . . . . . . . . . . . . . Cave-ins Triggered . | . . . . . . . . . . . . . . Exploration Rate (%) 47 | 3 88 9 70 29 59 31 71 78 73 47 8 81 18 Regions Visited 13 Branch Regions 7 Pre-discovered Areas 4 | . 2 . 1 . . . . . 1 . . . . Known Exits Taken 4 | . 1 . . 1 1 1 . . . . . . . Unknown Exits Taken 7 | 1 . 1 1 . . . 1 1 1 1 . . . Scrap Searched 6 | . . 1 . . . . 1 4 . . . . . Spaces Dug 34 | . 3 . . . 6 19 . 4 . . 2 . . Terrain Destroyed 133 | . 10 . . . 12 27 23 4 . 14 2 . 41 Melee 6 | . . . . . . . . 4 . . 2 . . Projectile 38 | . 3 . . . 12 20 1 . . 1 . . 1 AOE 89 | . 7 . . . . 7 22 . . 13 . . 40 Terrain Rammed . | . . . . . . . . . . . . . . Walls Destroyed . | . . . . . . . . . . . . . . Machines Disabled . | . . . . . . . . . . . . . . Actions | -11 -10 -10 -10 -9 -8 -7 -7 -7 -7 -6 -6 -6 -6 --------- Run | Yrd Mat Min Exi Min Mat Fac Low Low Dat Pro Fac Was Fac Total 6323 | 60 823 36 418 121 974 1243 558 602 84 298 135 95 876 Wait 584 | 2 60 1 . 14 59 168 14 44 . 61 3 . 158 Move 5081 | 39 665 35 399 100 786 918 473 521 78 221 111 92 643 Hop . | . . . . . . . . . . . . . . Pick Up 102 | 6 22 . 9 1 21 20 8 3 . . 7 . 5 Fast Attach 51 | 6 2 . . . 6 6 2 2 3 . . 2 22 Attach 26 | 2 1 . . . 4 9 . . . 2 3 . 5 Detach 5 | . . . . . 1 2 . . . . . . 2 Swap 90 | . 13 . 2 2 14 15 16 18 . 6 3 . 1 Drop 97 | 1 11 . 8 . 26 18 9 6 3 . 3 1 11 Fire 255 | 4 47 . . 4 57 87 21 4 . 8 2 . 21 Melee 7 | . . . . . . . . 4 . . 3 . . Ram 2 | . 2 . . . . . . . . . . . . Kick . | . . . . . . . . . . . . . . Crush . | . . . . . . . . . . . . . . Escape Stasis 8 | . . . . . . . . . . . . . 8 Rewire 15 | . . . . . . . 15 . . . . . . Trap . | . . . . . . . . . . . . . . Miscellaneous . | . . . . . . . . . . . . . . Route ------- -11/Scrapyard -10/Materials (discovered 5 exits: *Mat x3 / *Min / Sub) -10/Mines (discovered 3 exits: Mat x2 / *Exi) -10/Exiles -9/Mines -8/Materials -7/Factory (discovered 2 exits: *Low x2) -7/Lower Caves -7/Lower Caves -7/Data Miner -6/Proximity Caves -6/Factory -6/Waste -6/Factory (discovered 2 exits: *Low x2) History --------- Turn | Location | Event 22 | -11/Scrapyard | Discovered new exit (range 15) 83 | -11/Scrapyard | Entered Materials 210 | -10/Materials | Discovered new exit (range 16) 389 | -10/Materials | Discovered new exit (range 3) 814 | -10/Materials | Discovered new exit (range 11) 893 | -10/Materials | Learned 2 Mines zone layouts 934 | -10/Materials | Learned Storage non-interactive machine intel 951 | -10/Materials | Build established: Mutant 991 | -10/Materials | Learned Storage emergency access door positions 1003 | -10/Materials | Identified exit to Mines 1003 | -10/Materials | Identified exit to Subcaves 1003 | -10/Materials | Learned location of 1 exit from Materials 1026 | -10/Materials | Learned location of 1 exit from Storage 1057 | -10/Materials | Learned location of Storage (-9) 1202 | -10/Materials | Entered Mines 1203 | -10/Mines | Identified exit to Materials 1228 | -10/Mines | Assembled infested the area 1245 | -10/Mines | Discovered new exit (range 5) 1251 | -10/Mines | Entered Exiles 1288 | -10/Exiles | Met 8R-AWN 1310 | -10/Exiles | Met EX-HEX 1349 | -10/Exiles | Met EX-BIN 1509 | -10/Exiles | Aligned with FarCom system 1510 | -10/Exiles | Given EX-Vault access code 1534 | -10/Exiles | Opened EX-Vault 1542 | -10/Exiles | Found AWS/Autocannon 1564 | -10/Exiles | Warned to stay clear of 0b10 Research branches 1636 | -10/Exiles | Met EX-DEC 1661 | -10/Exiles | Learned location of Zion (-6) 1708 | -10/Exiles | Discovered new exit (range 14) 1749 | -10/Exiles | Left Exiles lab with AWS/Autocannon 1749 | -10/Exiles | Entered Mines 1750 | -9/Mines | Identified exit to Materials 1754 | -9/Mines | Met a Derelict bent on vengeance 1756 | -9/Mines | Found the Drone Emporium 1763 | -9/Mines | Found Prototype Device 1765 | -9/Mines | Identified Sensor Drone Bay 1879 | -9/Mines | Found a damaged Exp. Sensor Array with a note attached 1914 | -9/Mines | Entered Materials 1914 | -8/Materials | Evolved 4 slots: Utility x3, Weapon x1 1915 | -8/Materials | Identified exit to Factory 2274 | -8/Materials | Build established: Skirmisher 3267 | -8/Materials | Entered Factory 3267 | -7/Factory | Evolved 2 slots: Utility x2 3308 | -7/Factory | Build established: Scavenger-Skirmisher 4212 | -7/Factory | Build established: Skirmisher 4329 | -7/Factory | Fabricated Plasma Cutter (x2) 4892 | -7/Factory | Identified exit to Lower Caves 5092 | -7/Factory | Entered Lower Caves 5538 | -7/Lower Caves | Learned Factory stockpile data 5612 | -7/Lower Caves | Learned Factory emergency access door positions 5629 | -7/Lower Caves | Attracted the attention of an 0b10 outpost 5892 | -7/Lower Caves | Discovered new exit (range 12) 5914 | -7/Lower Caves | Entered another Lower Caves area 5914 | -7/Lower Caves | Accompanied by 2 allies 6471 | -7/Lower Caves | Found DCF Scrap (10 items) 6599 | -7/Lower Caves | Learned Factory security intel 6773 | -7/Lower Caves | Discovered new exit (range 10) 6786 | -7/Lower Caves | Entered Data Miner 6786 | -7/Data Miner | Discovered new exit (range 6) 6811 | -7/Data Miner | Met Data Miner 6845 | -7/Data Miner | Learned location of Section 7 (-3) 6845 | -7/Data Miner | Acquired the access code to Warlord's prototype stash 6869 | -7/Data Miner | Received God Mode back door access code from Data Miner 6908 | -7/Data Miner | Entered Proximity Caves 7087 | -6/Proximity Caves | Spotted B-75 Beast 7313 | -6/Proximity Caves | Discovered new exit (range 19) 7344 | -6/Proximity Caves | Entered Factory 7344 | -6/Factory | Evolved 2 slots: Power x1, Utility x1 7377 | -6/Factory | Discovered new exit (range 26) 7441 | -6/Factory | Identified exit to Lower Caves 7552 | -6/Factory | Sucked down chute 7552 | -6/Factory | Entered Waste 7560 | -6/Waste | Spotted C-40 Crusher 7568 | -6/Waste | Spotted C-40 Crusher 7589 | -6/Waste | Spotted C-40 Crusher 7607 | -6/Waste | Crushed by Compactor (1 part destroyed, 2 dropped) 7610 | -6/Waste | Crushed by Compactor (0 parts destroyed, 1 dropped) 7611 | -6/Waste | Spotted C-40 Crusher 7618 | -6/Waste | Crushed by Compactor (1 part destroyed) 7621 | -6/Waste | Crushed by Compactor (1 part destroyed, 1 dropped) 7623 | -6/Waste | Spotted C-40 Crusher 7627 | -6/Waste | Spotted C-40 Crusher 7638 | -6/Waste | Crushed by Compactor (0 parts destroyed, 1 dropped) 7662 | -6/Waste | Crushed by Compactor (1 part destroyed) 7667 | -6/Waste | Discovered new exit (range 10) 7677 | -6/Waste | Entered Factory 7693 | -6/Factory | Lost 6 parts (1p2u3w) 8210 | -6/Factory | Build established: Scavenger-Skirmisher 8577 | -6/Factory | Garrison activated, responded to threat 8578 | -6/Factory | Cargo convoy interrupted 8586 | -6/Factory | Released all parts (10) 8588 | -6/Factory | Core integrity fell below 50% 8599 | -6/Factory | Core integrity fell below 20% 8616 | -6/Factory | Lost 4 parts (1p1n1u1w) 8659 | -6/Factory | Destroyed by X-62 Marksman with Gauss Rifle Last Messages --------------- recycling unit. 08644_ U-05 Engineer lays Concrete. 08644_ R-10 Processor collects Lgt. Angular Momentum Engine. 08647_ R-10 Processor inserts Unknown Energy Gun into recycling unit. 08647_ Acquired Imp. Medium Armor Plating. 08650_ R-10 Processor inserts Mic. Nuclear Core into recycling unit. 08650_ Acquired Imp. Medium Armor Plating. 08653_ System corrupted: Heat flow error (+228). 08653_ R-10 Processor inserts Remote Datajack into recycling unit. 08656_ R-10 Processor inserts Imp. Heat Sink into recycling unit. 08657_ Slug penetrates Door. 08657_ Slug penetrates Wall. 08659_ R-10 Processor inserts Wheel into recycling unit. 08659_ Penetrated by Slug. Map ----- +----------------------------------------------------+ | ?????????????????????????????????????????????????? | | ?????????????????????????????????????????????????? | | ?????????????????????????????????????????????????? | | ?????????????????????????????????????????????????? | | ?????????????????????????????????????????????????? | | ??????????????? ???????????????????????????????? | | ???????????## ##?????????????????????????????? | | ???????????## # ?????????????????????????????? | | ???????????## # ?????????????????????????????? | | ???????????## # ?????????????????????????????? | | ???????????## # ?????????????????????????????? | | ???????????## # ?????????????????????????????? | | ???????????## # ?????????????????????????????? | | ??????####?## w # ?????????????????????????????? | | ??????####?## + ?????????????????????????????? | | ?????? ? # # ###???????????????????? | | ?????"?""" # ############???????????????????? | | ?????""""" #A # """"""" ##???????????????????? | | ??= """ # # """Y""" ##???????????????????? | | ?? # # R ##???????????????????? | | ??? """"" " #%!! ##???????????????????? | | """"" #% %x ! ##???????????????????? | | """ # % x# ! !##???????????????????? | | #% ! # ##???????????????????? | | # % %%# ########?????????????? | | # #######@##########?????????????? | | " # ##?????????????? | | ?????#######" h# ##?????????????? | | ?????????###" h h ##?????????????? | | ??????????### # ##?????????????? | | ??????????### # ##?????????????? | | ############# # ##?????????????? | | # ##?????????????? | | *= # ##?????????????? | | %= # ##?????????????? | | [p # ##?????????????? | | w% % ##################?????????????? | | ##############/#####################?????????????? | | #####???# H ] #???????????????????????????? | | #???# #???????????????????????????? | | #???# """"""""" #???????????????????????????? | | #???# #???????????????????????????? | | ##### """"""""" #???????????????????????????? | | + + #??????????????????????????? | | ##### !! ##??????????????????????????? | | #???# !! #???????????????????????????? | | #???# !! #???????????????????????????? | | #???# #???????????????????????????? | | ###?# """"""""" #???????????????????????????? | | " #?# ????????????????????????????? | +----------------------------------------------------+ Best States ------------- Heat Dissipation 61 Energy Generation 29 Energy Capacity 490 Matter Stores 300 Matter Capacity 300 Sight Range 20 Terrain Scan Range 16 Terrain Scan Density 85 Jamming Range 12 Cloak Strength 2 Armor Coverage 225 Resistance: KI 20 Resistance: EM 15 Core Shielding 20 Propulsion Shielding 66 Evasion (%) 55 Targeting Accuracy 16 Recoil Reduction 4 Offensive Hacking 10 Authchip Count 1 Item Schematics ----------------- Gauss Rifle | -7/Factory | Extracted Coolant Injector | -7/Factory | Extracted Imp. Light Cannon | -7/Factory | Extracted Hvy. Ion Cannon | -7/Factory | Extracted Core Analyzer | -7/Factory | Extracted ECM Suite | -7/Factory | Extracted VSS Leg | -7/Factory | Extracted Prc. Shock Rifle | -7/Factory | Extracted Adv. EMP Blaster | -7/Factory | Extracted Wheel | -7/Factory | Extracted Adv. Terrain Scan Processor | -7/Factory | Extracted EM Shotgun | -7/Factory | Extracted Pulse Rifle | -7/Factory | Extracted Lyr. Light Armor Plating | -7/Factory | Extracted Lrg. Matter Pod | -7/Factory | Extracted Proton Missile Launcher | -7/Factory | Extracted Imp. Signal Interpreter | -7/Factory | Extracted Insulated Plating | -7/Factory | Extracted Imp. Heat Sink | -7/Factory | Extracted Plasma Cutter | -7/Factory | Hacked Arm. Huge Wheel | -7/Factory | Scanalyzed Hcp. Storage Unit | -7/Factory | Scanalyzed Combat Drone Bay | -7/Data Miner | Free Lgt. Regenerative Plating | -7/Data Miner | Free Cld. Aerolev Unit | -7/Data Miner | Free Exp. Utility Shielding | -7/Data Miner | Free Force Rifle | -7/Data Miner | Free Cmb. Gravmag System | -7/Data Miner | Free Imp. Transmission Jammer | -7/Data Miner | Free KE Penetrator | -7/Data Miner | Free Imp. Plasma Cutter | -7/Data Miner | Free Robot Schematics ------------------ A-15 Conveyor | -7/Data Miner | Free M-14 Sweeper | -7/Data Miner | Free G-50 Soldier | -7/Data Miner | Free R-10 Processor | -7/Data Miner | Free L-41 Fighter | -7/Data Miner | Free B-48 Gladiator | -7/Data Miner | Free Fabricated ------------ Plasma Cutter | x2 | -7/Factory | Authchip Repaired ---------- Nothing Alien Tech Used ----------------- None Achievements -------------- None Challenges ------------ None Game ------ Seed MediumAbsorptionCompanion Manual? 0 Play Time 02:03:51 Cumulative 125.1 hours Start 2025.10.08 @ 16:58:46 End 2025.10.08 @ 20:00:51 Sessions 3 Manual Loads 0 Difficulty Rogue Special Mode None Game No. 69 Rogue 64 Adventurer 5 Explorer 0 Win Type - Total 2 Types 2/0/0/0/0/0/0/0/0/0 Lore% 55 Gallery% 59 Achievement% 54 Wizard Run 0 Options --------- Layout 1 ASCII 0 Keyboard 0 Movement Numpad Keybinds 0 Fullscreen 1 Font 24/Smallcaps Map View 50x35 Zoom Use 0% Tactical HUD 1 Map Filters NONE Filters NONE Steam 1 RUN: 777ea6ae-12cb-4d63-b45a-5ef6935ed9f9